fUST/lending_fUST_20260113
["ID","MTS","AMOUNT","RATE_DAILY","PERIOD"]
[401491217,1768266639282,-500.0,0.00013273,2]
[401491218,1768266639291,-500.0,0.00013273,2]
[401491219,1768266639300,-500.0,0.00013273,2]
[401491220,1768266639310,-500.0,0.00013273,2]
[401491221,1768266639319,-500.0,0.00013273,2]
[401491222,1768266639328,-500.0,0.00013273,2]
[401491223,1768266639337,-587.83194945,0.00013273,2]
[401491224,1768266639347,-500.0,0.00013273,2]
[401491225,1768266639356,-500.0,0.00013273,2]
[401491226,1768266639365,-500.0,0.00013273,2]
[401491227,1768266639374,-500.0,0.00013273,2]
[401491228,1768266639383,-500.0,0.00013273,2]
[401491229,1768266639392,-500.0,0.00013273,2]
[401491230,1768266639401,-500.0,0.00013273,2]
[401491231,1768266639410,-500.0,0.00013273,2]
[401491232,1768266639419,-500.0,0.00013273,2]
[401491233,1768266639428,-500.0,0.00013273,2]
[401491234,1768266639437,-500.0,0.00013273,2]
[401491235,1768266639446,-500.0,0.00013273,2]
[401491236,1768266639455,-500.0,0.00013273,2]
[401491237,1768266639464,-500.0,0.00013273,2]
[401491238,1768266639474,-500.0,0.00013273,2]
[401491239,1768266639483,-500.0,0.00013273,2]
[401491241,1768266639492,-500.0,0.00013273,2]
[401491242,1768266639502,-500.0,0.00013273,2]
[401491243,1768266639511,-500.0,0.00013273,2]
[401491244,1768266639519,-500.0,0.00013273,2]
[401491245,1768266639529,-500.0,0.00013273,2]
[401491246,1768266639539,-400.46467622,0.00013273,2]
[401491247,1768266639549,-500.0,0.00013273,2]
[401491248,1768266639559,-500.0,0.00013273,2]
[401491249,1768266639568,-500.0,0.00013273,2]
[401491250,1768266639577,-500.0,0.00013273,2]
[401491251,1768266639586,-500.0,0.00013273,2]
[401491252,1768266639595,-500.0,0.00013273,2]
[401491253,1768266639604,-500.0,0.00013273,2]
[401491254,1768266639613,-500.0,0.00013273,2]
[401491255,1768266639622,-500.0,0.00013273,2]
[401491256,1768266639631,-500.0,0.00013273,2]
[401491257,1768266639640,-500.0,0.00013273,2]
[401491258,1768266639649,-500.0,0.00013273,2]
[401491259,1768266639658,-500.0,0.00013273,2]
[401491260,1768266639667,-500.0,0.00013273,2]
[401491261,1768266639676,-500.0,0.00013273,2]
[401491262,1768266639686,-500.0,0.00013273,2]
[401491263,1768266639695,-720.0,0.00013647,2]
[401491264,1768266639704,-300.0,0.00013673,2]
[401491265,1768266639713,-500.0,0.00013698,2]
[401491266,1768266639722,-500.0,0.00013698,2]
[401491267,1768266639731,-500.0,0.00013698,2]
[401491268,1768266639741,-500.0,0.00013698,2]
[401491269,1768266639750,-500.0,0.00013698,2]
[401491271,1768266639759,-500.0,0.00013698,2]
[401491273,1768266639768,-500.0,0.00013698,2]
[401491275,1768266639778,-500.0,0.00013698,2]
[401491277,1768266639787,-500.0,0.00013698,2]
[401491279,1768266639799,-500.0,0.00013698,2]
[401491281,1768266639809,-500.0,0.00013698,2]
[401491283,1768266639818,-500.0,0.00013698,2]
[401491285,1768266639828,-500.0,0.00013698,2]
[401491287,1768266639836,-500.0,0.00013698,2]
[401491289,1768266639846,-500.0,0.00013698,2]
[401491291,1768266639855,-500.0,0.00013698,2]
[401491293,1768266639864,-17379.6692671,0.00013699,2]
[401491295,1768266639874,-1393.247444,0.00013699,2]
[401491297,1768266639883,-500.0,0.00013699,2]
[401491299,1768266639893,-500.0,0.00013699,2]
[401491301,1768266639902,-500.0,0.00013699,2]
[401491303,1768266639911,-612.0897626,0.00013699,2]
[401491305,1768266639920,-500.0,0.00013699,2]
[401491307,1768266639930,-500.0,0.00013699,2]
[401491308,1768266639939,-500.0,0.00013699,2]
[401491310,1768266639949,-500.0,0.00013699,2]
[401491312,1768266639958,-500.0,0.00013699,2]
[401491314,1768266639967,-500.0,0.00013699,2]
[401491316,1768266639976,-500.0,0.00013699,2]
[401491318,1768266639986,-500.0,0.00013699,2]
[401491321,1768266639995,-500.0,0.00013699,2]
[401491322,1768266640004,-500.0,0.00013699,2]
[401491324,1768266640013,-500.0,0.00013699,2]
[401491327,1768266640022,-500.0,0.00013699,2]
[401491328,1768266640032,-500.0,0.00013699,2]
[401491330,1768266640041,-252.89893897,0.00013699,2]
[401491332,1768266640049,-500.0,0.00013699,2]
[401491334,1768266640058,-500.0,0.00013699,2]
[401491336,1768266640067,-500.0,0.00013699,2]
[401491338,1768266640077,-500.0,0.00013699,2]
[401491340,1768266640086,-227.11320444,0.00013699,2]
[401491343,1768266640095,-502.65928848,0.00013699,2]
[401491346,1768266640104,-500.0,0.00013699,2]
[401491349,1768266640113,-500.0,0.00013699,2]
[401491351,1768266640122,-461.16799506,0.00013699,2]
[401491352,1768266640131,-500.0,0.00013699,2]
[401491354,1768266640140,-500.0,0.00013699,2]
[401491356,1768266640149,-500.0,0.00013699,2]
[401491358,1768266640158,-500.0,0.00013699,2]
[401491360,1768266640167,-500.0,0.00013699,2]
[401491362,1768266640176,-500.0,0.00013699,2]
[401491364,1768266640186,-500.0,0.00013699,2]
[401491366,1768266640195,-298.79354709,0.00013699,2]
[401491368,1768266640204,-500.0,0.00013699,2]
[401491370,1768266640212,-500.0,0.00013699,2]
[401491372,1768266640221,-500.0,0.00013699,2]
[401491374,1768266640230,-500.0,0.00013699,2]
[401491376,1768266640239,-500.0,0.00013699,2]
[401491378,1768266640249,-500.0,0.00013699,2]
[401491380,1768266640258,-159.64533136,0.00013699,2]
[401491382,1768266640267,-441.99834149,0.00013699,2]
[401491384,1768266640276,-500.0,0.00013699,2]
[401491386,1768266640285,-500.0,0.00013699,2]
[401491388,1768266640294,-500.0,0.00013699,2]
[401491390,1768266640303,-500.28128039,0.00013699,2]
[401491392,1768266640312,-500.0,0.00013699,2]
[401491394,1768266640321,-500.0,0.00013699,2]
[401491396,1768266640330,-500.0,0.00013699,2]
[401491398,1768266640339,-500.0,0.00013699,2]
[401491400,1768266640348,-500.0,0.00013699,2]
[401491402,1768266640357,-610.75742393,0.00013699,2]
[401491404,1768266640366,-500.0,0.00013699,2]
[401491406,1768266640375,-500.0,0.00013699,2]
[401491408,1768266640384,-500.0,0.00013699,2]
[401491410,1768266640393,-500.0,0.00013699,2]
[401491412,1768266640403,-500.0,0.00013699,2]
[401491414,1768266640412,-500.0,0.00013699,2]
[401491416,1768266640421,-500.0,0.00013699,2]
[401491418,1768266640430,-501.55614282,0.00013699,2]
[401491420,1768266640439,-500.0,0.00013699,2]
[401491422,1768266640448,-500.0,0.00013699,2]
[401491424,1768266640458,-500.0,0.00013699,2]
[401491426,1768266640467,-500.0,0.00013699,2]
[401491428,1768266640478,-500.0,0.00013699,2]
[401491430,1768266640487,-500.0,0.00013699,2]
[401491432,1768266640496,-500.0,0.00013699,2]
[401491434,1768266640505,-500.0,0.00013699,2]
[401491436,1768266640514,-366.95119537,0.00013699,2]
[401491438,1768266640523,-313.20652716,0.00013699,2]
[401491441,1768266640534,-296.07308979,0.00013699,2]
[401491443,1768266640544,-500.0,0.00013699,2]
[401491445,1768266640553,-500.0,0.00013699,2]
[401491447,1768266640562,-500.0,0.00013699,2]
[401491448,1768266640572,-1000.0,0.00013821,2]
[401491451,1768266640581,-958.38483251,0.00013821,2]
[401491453,1768266640590,-1000.0,0.00013821,2]
[401491454,1768266640599,-1000.0,0.00013821,2]
[401491457,1768266640609,-1113.91769968,0.00013821,2]
[401491459,1768266640619,-1000.0,0.00013821,2]
[401491460,1768266640628,-290.33203274,0.00013821,2]
[401491463,1768266640643,-1000.0,0.00013821,2]
[401491464,1768266640653,-1000.0,0.00013821,2]
[401491466,1768266640663,-1000.0,0.00013821,2]
[401491468,1768266640681,-1000.0,0.00013821,2]
[401491471,1768266640693,-1000.0,0.00013821,2]
[401491472,1768266640703,-1000.0,0.00013821,2]
[401491474,1768266640711,-1000.0,0.00013821,2]
[401491476,1768266640720,-1000.0,0.00013821,2]
[401491478,1768266640729,-1000.0,0.00013821,2]
[401491480,1768266640738,-1000.0,0.00013821,2]
[401491483,1768266640747,-1000.0,0.00013821,2]
[401491484,1768266640757,-1000.0,0.00013821,2]
[401491486,1768266640766,-1000.0,0.00013821,2]
[401491488,1768266640775,-1000.0,0.00013821,2]
[401491490,1768266640784,-1000.0,0.00013821,2]
[401491492,1768266640793,-1000.0,0.00013821,2]
[401491494,1768266640805,-1000.0,0.00013821,2]
[401491496,1768266640814,-332.40668052,0.00013821,2]
[401491498,1768266640823,-1000.0,0.00013821,2]
[401491500,1768266640833,-1000.0,0.00013821,2]
[401491502,1768266640844,-1000.0,0.00013821,2]
[401491504,1768266640853,-303.88205907,0.00013821,2]
[401491506,1768266640862,-798.59280651,0.00013821,2]
[401491508,1768266640871,-1000.0,0.00013821,2]
[401491510,1768266640880,-1000.0,0.00013821,2]
[401491512,1768266640889,-1000.0,0.00013821,2]
[401491514,1768266640899,-1000.0,0.00013821,2]
[401491516,1768266640908,-1000.0,0.00013821,2]
[401491518,1768266640917,-680.33880903,0.00013821,2]
[401491520,1768266640926,-1000.0,0.00013821,2]
[401491522,1768266640936,-1000.0,0.00013821,2]
[401491524,1768266640946,-1000.0,0.00013821,2]
[401491526,1768266640955,-1000.0,0.00013821,2]
[401491528,1768266640964,-294.20360383,0.00013973,2]
[401491530,1768266640974,-600.0,0.00014221,2]
[401491532,1768266640983,-1000.0,0.00014247,2]
[401491534,1768266640992,-1000.0,0.00014247,2]
[401491536,1768266641001,-1002.38932755,0.00014247,2]
[401491538,1768266641011,-1017.77857831,0.00014247,2]
[401491540,1768266641020,-353.02410941,0.00014247,2]
[401491542,1768266641029,-501.52224721,0.00014247,2]
[401491544,1768266641039,-1000.0,0.00014247,2]
[401491546,1768266641049,-1000.0,0.00014247,2]
[401491548,1768266641059,-1000.0,0.00014247,2]
[401491550,1768266641069,-250.0,0.00014247,2]
[401491553,1768266641079,-1000.0,0.00014247,2]
[401491554,1768266641088,-1000.0,0.00014247,2]
[401491556,1768266641097,-500.93038909,0.00014247,2]
[401491558,1768266641106,-1000.0,0.00014247,2]
[401491560,1768266641117,-1000.0,0.00014247,2]
[401491562,1768266641126,-1000.0,0.00014247,2]
[401491564,1768266641136,-1000.0,0.00014247,2]
[401491566,1768266641152,-1002.56553603,0.00014247,2]
[401491568,1768266641161,-1000.0,0.00014247,2]
[401491570,1768266641170,-276.29994154,0.00014247,2]
[401491572,1768266641180,-1000.0,0.00014247,2]
[401491574,1768266641189,-1000.0,0.00014247,2]
[401491576,1768266641198,-1000.0,0.00014247,2]
[401491578,1768266641207,-1000.0,0.00014247,2]
[401491580,1768266641216,-1000.0,0.00014247,2]
[401491582,1768266641226,-999.83703447,0.00014247,2]
[401491584,1768266641235,-1000.0,0.00014247,2]
[401491586,1768266641244,-1000.0,0.00014247,2]
[401491588,1768266641254,-1000.0,0.00014247,2]
[401491590,1768266641262,-1000.0,0.00014247,2]
[401491592,1768266641272,-1014.57441802,0.00014247,2]
[401491594,1768266641281,-1000.512985,0.00014247,2]
[401491596,1768266641290,-1000.0,0.00014247,2]
[401491598,1768266641299,-1000.0,0.00014247,2]
[401491600,1768266641308,-1000.0,0.00014247,2]
[401491602,1768266641318,-1000.0,0.00014247,2]
[401491604,1768266641327,-1000.0,0.00014247,2]
[401491606,1768266641336,-875.76793412,0.00014247,2]
[401491608,1768266641345,-500.0,0.00014247,2]
[401491610,1768266641355,-1000.0,0.00014247,2]
[401491612,1768266641364,-581.34216933,0.00014247,2]
[401491614,1768266641373,-1000.0,0.00014247,2]
[401491616,1768266641382,-1000.0,0.00014247,2]
[401491618,1768266641392,-1000.0,0.00014247,2]
[401491620,1768266641401,-1029.61129365,0.00014247,2]
[401491622,1768266641411,-646.68328603,0.00014247,2]
[401491624,1768266641421,-1000.0,0.00014247,2]
[401491626,1768266641430,-1000.0,0.00014247,2]
[401491628,1768266641440,-1000.0,0.00014247,2]
[401491630,1768266641449,-1000.0,0.00014247,2]
[401491632,1768266641459,-1000.0,0.00014247,2]
[401491634,1768266641468,-1000.0,0.00014247,2]
[401491636,1768266641477,-1006.00253074,0.00014247,2]
[401491638,1768266641486,-1138.41119879,0.00014247,2]
[401491640,1768266641497,-1000.0,0.00014247,2]
[401491642,1768266641506,-1000.0,0.00014247,2]
[401491644,1768266641515,-346.05518507,0.00014247,2]
[401491646,1768266641524,-1000.0,0.00014247,2]
[401491648,1768266641534,-504.59320272,0.00014368,2]
[401491650,1768266641543,-1500.0,0.00014368,2]
[401491661,1768266641642,-1500.0,0.00014368,2]
[401491664,1768266641652,-423.32811707,0.00014368,2]
[401491666,1768266641661,-1500.0,0.00014368,2]
[401491668,1768266641671,-401.64301006,0.00014368,2]
[401491669,1768266641680,-1177.20505665,0.00014368,2]
[401491671,1768266641689,-1485.3091038,0.00014368,2]
[401491673,1768266641698,-763.96834089,0.00014368,2]
[401491675,1768266641707,-500.0,0.00014368,2]
[401491678,1768266641719,-1500.0,0.00014368,2]
[401491680,1768266641729,-1500.0,0.00014368,2]
[401491681,1768266641738,-1000.0,0.00014368,2]
[401491684,1768266641747,-1500.0,0.00014368,2]
[401491685,1768266641756,-1500.0,0.00014368,2]
[401491688,1768266641766,-1500.0,0.00014368,2]
[401491689,1768266641775,-1500.0,0.00014368,2]
[401491691,1768266641784,-1500.0,0.00014368,2]
[401491693,1768266641793,-1500.0,0.00014368,2]
[401491695,1768266641807,-1500.0,0.00014368,2]
[401491697,1768266641816,-1500.0,0.00014368,2]
[401491699,1768266641826,-1502.33157316,0.00014368,2]
[401491702,1768266641835,-500.80134157,0.00014368,2]
[401491703,1768266641846,-1500.0,0.00014368,2]
[401491706,1768266641855,-1121.35319303,0.00014368,2]
[401491707,1768266641863,-1603.18109463,0.00014368,2]
[401491709,1768266641873,-1500.0,0.00014368,2]
[401491711,1768266641883,-1500.0,0.00014368,2]
[401491713,1768266641892,-1000.0,0.00014368,2]
[401491715,1768266641901,-1500.0,0.00014368,2]
[401491717,1768266641911,-1500.0,0.00014368,2]
[401491719,1768266641920,-5000.0,0.0001451,2]
[401491721,1768266641930,-587.0,0.00014534,2]
[401491723,1768266641939,-100000.0,0.0001459,2]
[401491725,1768266641949,-500.0,0.00014767,2]
[401491727,1768266641958,-500.0,0.00014767,2]
[401491729,1768266641967,-500.0,0.00014767,2]
[401491731,1768266641976,-500.0,0.00014767,2]
[401491733,1768266641985,-500.0,0.00014767,2]
[401491735,1768266641994,-500.0,0.00014767,2]
[401491737,1768266642003,-500.0,0.00014767,2]
[401491739,1768266642012,-500.0,0.00014767,2]
[401491741,1768266642022,-500.0,0.00014767,2]
[401491743,1768266642031,-500.0,0.00014767,2]
[401491745,1768266642039,-500.0,0.00014767,2]
[401491747,1768266642049,-500.0,0.00014767,2]
[401491749,1768266642058,-364.86992356,0.00014767,2]
[401491751,1768266642067,-900.0,0.00014768,2]
[401491753,1768266642076,-500.0,0.00014795,2]
[401491755,1768266642085,-1000.0,0.00014795,2]
[401491757,1768266642094,-1500.0,0.00014795,2]
[401491759,1768266642103,-1500.0,0.00014795,2]
[401491761,1768266642112,-500.0,0.00014795,2]
[401491763,1768266642121,-1500.0,0.00014795,2]
[401491765,1768266642130,-575.12204215,0.00014795,2]
[401491767,1768266642139,-158.4999436,0.00014795,2]
[401491769,1768266642147,-1000.0,0.00014795,2]
[401491771,1768266642156,-1121.58832465,0.00014795,2]
[401491773,1768266642165,-675.05887209,0.00014795,2]
[401491775,1768266642174,-1500.0,0.00014795,2]
[401491777,1768266642183,-1500.0,0.00014795,2]
[401491779,1768266642192,-1500.0,0.00014795,2]
[401491781,1768266642200,-1500.0,0.00014795,2]
[401491783,1768266642209,-1001.21372141,0.00014795,2]
[401491784,1768266642218,-964.41428729,0.00014795,2]
[401491786,1768266642227,-1500.0,0.00014795,2]
[401491788,1768266642236,-1500.0,0.00014795,2]
[401491790,1768266642245,-1500.0,0.00014795,2]
[401491792,1768266642254,-1500.0,0.00014795,2]
[401491794,1768266642263,-1500.0,0.00014795,2]
[401491796,1768266642272,-1500.0,0.00014795,2]
[401491798,1768266642281,-1509.97698878,0.00014795,2]
[401491800,1768266642290,-1500.0,0.00014795,2]
[401491803,1768266642299,-710.84440634,0.00014795,2]
[401491806,1768266642308,-1500.0,0.00014795,2]
[401491809,1768266642317,-500.0,0.00014795,2]
[401491812,1768266642326,-1500.0,0.00014795,2]
[401491814,1768266642335,-1500.0,0.00014795,2]
[401491817,1768266642344,-1500.0,0.00014795,2]
[401491819,1768266642352,-1500.0,0.00014795,2]
[401491821,1768266642362,-250.0,0.00014915,2]
[401491823,1768266642371,-500.0,0.00014916,2]
[401491825,1768266642380,-155.72124395,0.00014916,2]
[401491827,1768266642389,-500.0,0.00014916,2]
[401491829,1768266642398,-2000.0,0.00014916,2]
[401491831,1768266642407,-2000.0,0.00014916,2]
[401491833,1768266642416,-2000.0,0.00014916,2]
[401491835,1768266642426,-2000.0,0.00014916,2]
[401491837,1768266642435,-500.0,0.00014916,2]
[401491839,1768266642444,-2000.0,0.00014916,2]
[401491841,1768266642453,-2000.0,0.00014916,2]
[401491843,1768266642462,-1113.36442406,0.00014916,2]
[401491845,1768266642472,-2000.0,0.00014916,2]
[401491847,1768266642481,-1466.62413338,0.00014916,2]
[401491849,1768266642490,-2000.0,0.00014916,2]
[401491851,1768266642500,-2000.0,0.00014916,2]
[401491853,1768266642509,-2000.0,0.00014916,2]
[401491855,1768266642518,-2000.0,0.00014916,2]
[401491857,1768266642527,-864.0,0.00015011,2]
[401491859,1768266642536,-403.46297136,0.00015271,2]
[401491861,1768266642545,-300.0,0.00015316,2]
[401491863,1768266642554,-1000.0,0.00015342,2]
[401491865,1768266642563,-1026.41190133,0.00015342,2]
[401491867,1768266642572,-737.22168392,0.00015342,2]
[401491869,1768266642581,-1500.0,0.00015342,2]
[401491871,1768266642590,-1000.0,0.00015342,2]
[401491873,1768266642600,-1000.0,0.00015342,2]
[401491875,1768266642610,-507.57819343,0.00015342,2]
[401491877,1768266642620,-500.0,0.00015342,2]
[401491879,1768266642629,-2000.0,0.00015342,2]
[401491881,1768266642638,-2000.0,0.00015342,2]
[401491883,1768266642648,-2500.0,0.00015464,2]
[401491885,1768266642657,-1000.0,0.00015464,2]
[401491887,1768266642666,-1000.0,0.00015464,2]
[401491889,1768266642676,-2021.14150026,0.00015464,2]
[401491891,1768266642685,-374.68815725,0.00015464,2]
[401491893,1768266642694,-2500.0,0.00015464,2]
[401491895,1768266642703,-1000.0,0.00015464,2]
[401491897,1768266642713,-2500.0,0.00015464,2]
[401491899,1768266642722,-1000.0,0.00015464,2]
[401491901,1768266642731,-2500.0,0.00015464,2]
[401491903,1768266642740,-2500.0,0.00015464,2]
[401491905,1768266642750,-6095.52266173,0.00015472,2]
[401491907,1768266642759,-1000.0,0.0001589,2]
[401491909,1768266642768,-2500.0,0.0001589,2]
[401491911,1768266642778,-823.0,0.00015954,2]
[401491913,1768266642787,-500.0,0.00016012,2]
[401491915,1768266642798,-2000.0,0.00016012,2]
[401491917,1768266642808,-3000.0,0.00016012,2]
[401491919,1768266642817,-3000.0,0.00016012,2]
[401491921,1768266642826,-3000.0,0.00016012,2]
[401491923,1768266642835,-3000.0,0.00016438,2]
[401491925,1768266642845,-1000.0,0.00016513,2]
[401491927,1768266642854,-500.0,0.0001656,2]
[401491929,1768266642864,-1033.9237819,0.0001656,2]
[401491931,1768266642873,-2500.0,0.0001656,2]
[401491933,1768266642883,-1041.66666667,0.00016607,2]
[401491935,1768266642892,-228.70879455,0.00016748,7]
[401491937,1768266642902,-1012.33286536,0.00016986,2]
[401491939,1768266642911,-456.86248227,0.00017271,2]
[401491941,1768266642920,-5000.0,0.00017412,2]
[401491943,1768266642929,-1152.0,0.00017513,2]
[401491945,1768266642939,-2809.693971,0.00017767,2]
[401491947,1768266642948,-2809.693971,0.00017859,2]
[401491949,1768266642958,-151.0,0.00017955,2]
[401491951,1768266642967,-151.0,0.00018,2]
[401491953,1768266642976,-2809.693971,0.00018163,2]
[401491955,1768266642985,-1000.0,0.00018164,2]
[401491957,1768266642995,-181.08010149,0.00018187,2]
[401491959,1768266643004,-187.78006525,0.00018187,2]
[401491961,1768266643014,-194.72792766,0.00018187,2]
[401491963,1768266643023,-201.93286099,0.00018187,2]
[401491965,1768266643032,-209.40437684,0.00018187,2]
[401491967,1768266643041,-217.15233878,0.00018187,2]
[401491969,1768266643050,-225.18697532,0.00018187,2]
[401491971,1768266643060,-233.51889341,0.00018187,2]
[401491973,1768266643069,-242.15909246,0.00018187,2]
[401491975,1768266643078,-251.11897888,0.00018187,2]
[401491977,1768266643087,-2398.4119403,0.00018187,2]
[401491979,1768266643096,-260.4103811,0.00018187,2]
[401491981,1768266643105,-270.0455652,0.00018187,2]
[401491983,1768266643115,-280.03725112,0.00018187,2]
[401491985,1768266643124,-290.39862941,0.00018187,2]
[401491987,1768266643133,-496.47127164,0.00018187,2]
[401491989,1768266643142,-301.1433787,0.00018187,2]
[401491991,1768266643152,-2809.693971,0.00018366,2]
[401491993,1768266643161,-151.0,0.00018461,2]
[401491996,1768266643171,-2809.693971,0.00018687,2]
[401491998,1768266643180,-2487.15318209,0.00018735,2]
[401492000,1768266643190,-514.84070869,0.00018735,2]
[401492002,1768266643199,-303.10001603,0.000189,2]
[401492004,1768266643208,-2809.693971,0.0001894,2]
[401492005,1768266643217,-151.0,0.00018966,2]
[401492006,1768266643226,-10000.0,0.00019,2]
[401492007,1768266643235,-10000.0,0.00019,2]
[401492008,1768266643244,-3250.0,0.00019,2]
[401492009,1768266643252,-303.10001603,0.00019089,2]
[401492010,1768266643261,-728.0,0.00019097,2]
[401492011,1768266643270,-728.0,0.00019097,2]
[401492012,1768266643279,-352.88,0.00019178,2]
[401492013,1768266643287,-3217.64,0.000192,2]
[401492014,1768266643296,-156.51,0.000192,2]
[401492015,1768266643305,-17700.54,0.000192,2]
[401492016,1768266643315,-2809.693971,0.00019218,2]
[401492017,1768266643323,-1613.0,0.00019224,2]
[401492018,1768266643332,-510.26199319,0.00019271,2]
[401492019,1768266643341,-303.10001603,0.00019278,2]
[401492020,1768266643350,-2579.17784983,0.00019283,2]
[401492021,1768266643359,-533.88981491,0.00019283,2]
[401492022,1768266643368,-728.0,0.0001931,2]
[401492023,1768266643377,-303.10001603,0.00019467,2]
[401492024,1768266643387,-2809.693971,0.00019467,2]
[401492025,1768266643395,-151.0,0.00019472,2]
[401492026,1768266643404,-157.5,0.000196,2]
[401492027,1768266643413,-728.0,0.0001963,2]
[401492028,1768266643422,-303.10001603,0.00019656,2]
[401492029,1768266643431,-728.0,0.00019661,2]
[401492030,1768266643440,-20433.8791998,0.00019677,2]
[401492031,1768266643449,-1526.1019299,0.00019677,2]
[401492032,1768266643457,-65706.2095237,0.00019677,2]
[401492033,1768266643467,-250.0,0.00019726,2]
[401492034,1768266643476,-283.07601077,0.00019751,2]
[401492036,1768266643485,-1132.30404306,0.00019751,2]
[401492038,1768266643494,-2547.68409689,0.00019751,2]
[401492040,1768266643503,-4529.21617225,0.00019751,2]
[401492042,1768266643512,-7069.82336887,0.00019751,2]
[401492044,1768266643522,-242.8783614,0.00019751,2]
[401492046,1768266643531,-971.51344561,0.00019751,2]
[401492048,1768266643540,-2185.90525262,0.00019751,2]
[401492050,1768266643549,-3886.05378244,0.00019751,2]
[401492052,1768266643558,-6071.95903506,0.00019751,2]
[401492054,1768266643567,-8734.87738947,0.00019751,2]
[401492056,1768266643576,-158.0,0.000198,3]
[401492058,1768266643585,-728.0,0.00019816,2]
[401492060,1768266643594,-2674.60743027,0.00019831,2]
[401492062,1768266643603,-553.64373807,0.00019831,2]
[401492064,1768266643612,-454.65002405,0.00019845,4]
[401492066,1768266643622,-2809.6939715,0.00019873,2]
[401492068,1768266643631,-171.17,0.00019879,2]
[401492070,1768266643640,-728.0,0.00019916,2]
[401492072,1768266643649,-172465.868485,0.00019959,2]
[401492074,1768266643658,-349.0,0.00019971,2]
[401492076,1768266643667,-151.0,0.00019977,2]
[401492078,1768266643676,-9444.3046894,0.0002,2]
[401492080,1768266643685,-322.56345465,0.0002,2]
[401492082,1768266643694,-151.0,0.0002,2]
[401492084,1768266643703,-151.0,0.0002,2]
[401492086,1768266643712,-20000.0,0.0002,2]
[401492088,1768266643721,-151.0,0.0002,2]
[401492090,1768266643730,-151.0,0.0002,2]
[401492091,1768266643739,-151.0,0.0002,2]
[401492093,1768266643748,-151.0,0.0002,2]
[401492095,1768266643757,-151.0,0.0002,2]
[401492097,1768266643766,-20000.0,0.0002,2]
[401492099,1768266643777,-347.0,0.0002,2]
[401492101,1768266643786,-347.0,0.0002,2]
[401492102,1768266643796,-154.66138278,0.0002,2]
[401492103,1768266643809,-347.0,0.0002,2]
[401492104,1768266643818,-166.0,0.0002,2]
[401492105,1768266643828,-337.0,0.0002,2]
[401492106,1768266643837,-347.0,0.0002,2]
[401492107,1768266643847,-166.0,0.0002,2]
[401492108,1768266643856,-337.0,0.0002,2]
[401492109,1768266643865,-347.0,0.0002,2]
[401492110,1768266643875,-166.0,0.0002,2]
[401492111,1768266643884,-337.0,0.0002,2]
[401492112,1768266643893,-347.0,0.0002,2]
[401492113,1768266643990,-166.0,0.0002,2]
[401492114,1768266644003,-152.0,0.0002,2]
[401492115,1768266644022,-337.0,0.0002,2]
[401492116,1768266644042,-347.0,0.0002,2]
[401492117,1768266644063,-166.0,0.0002,2]
[401492118,1768266644081,-152.0,0.0002,2]
[401492119,1768266644093,-337.0,0.0002,2]
[401492120,1768266644104,-347.0,0.0002,2]
[401492122,1768266644115,-166.0,0.0002,2]
[401492124,1768266644125,-152.0,0.0002,2]
[401492125,1768266644135,-337.0,0.0002,2]
[401492126,1768266644144,-151.0,0.0002,2]
[401492127,1768266644154,-166.0,0.0002,2]